fUST/lending_fUST_20250802
["ID","MTS","AMOUNT","RATE_DAILY","PERIOD"]
[376650292,1754071839935,-460.0,0.00021813,2]
[376650294,1754071839944,-460.0,0.00021813,2]
[376650296,1754071839953,-460.0,0.00021813,2]
[376650298,1754071839963,-460.0,0.00021813,2]
[376650301,1754071839972,-460.0,0.00021813,2]
[376650303,1754071839982,-460.0,0.00021813,2]
[376650305,1754071839991,-460.0,0.00021813,2]
[376650307,1754071840002,-460.0,0.00021813,2]
[376650309,1754071840011,-460.0,0.00021813,2]
[376650311,1754071840021,-357.97916606,0.00021813,2]
[376650313,1754071840030,-460.0,0.00021813,2]
[376650315,1754071840039,-460.0,0.00021813,2]
[376650317,1754071840048,-198.63087513,0.00021813,2]
[376650319,1754071840057,-460.0,0.00021813,2]
[376650321,1754071840066,-460.0,0.00021813,2]
[376650323,1754071840075,-460.0,0.00021813,2]
[376650325,1754071840084,-460.0,0.00021813,2]
[376650327,1754071840094,-460.0,0.00021813,2]
[376650329,1754071840103,-460.0,0.00021813,2]
[376650331,1754071840112,-460.0,0.00021813,2]
[376650333,1754071840122,-460.0,0.00021813,2]
[376650335,1754071840131,-394.05230409,0.00021813,2]
[376650337,1754071840140,-460.0,0.00021813,2]
[376650339,1754071840150,-460.0,0.00021813,2]
[376650341,1754071840160,-248.68058445,0.00021813,2]
[376650343,1754071840171,-460.0,0.00021813,2]
[376650345,1754071840181,-460.0,0.00021813,2]
[376650347,1754071840190,-460.0,0.00021813,2]
[376650349,1754071840199,-460.0,0.00021813,2]
[376650351,1754071840208,-460.0,0.00021813,2]
[376650352,1754071840217,-460.0,0.00021813,2]
[376650353,1754071840226,-460.0,0.00021813,2]
[376650354,1754071840234,-460.0,0.00021813,2]
[376650355,1754071840243,-1862.78,0.00021813,2]
[376650356,1754071840253,-460.0,0.00021813,2]
[376650357,1754071840264,-448.69259301,0.00021813,2]
[376650358,1754071840273,-460.0,0.00021813,2]
[376650359,1754071840282,-460.0,0.00021813,2]
[376650360,1754071840291,-460.0,0.00021813,2]
[376650361,1754071840302,-460.0,0.00021814,2]
[376650362,1754071840311,-460.0,0.00021814,2]
[376650363,1754071840320,-460.0,0.00021814,2]
[376650364,1754071840329,-460.0,0.00021814,2]
[376650365,1754071840337,-460.0,0.00021814,2]
[376650366,1754071840349,-460.0,0.00021814,2]
[376650367,1754071840357,-695.88,0.00021814,2]
[376650368,1754071840366,-460.0,0.00021815,2]
[376650369,1754071840375,-460.0,0.00021815,2]
[376650370,1754071840384,-1155.73750896,0.00021831,6]
[376650371,1754071840393,-500.0,0.00021873,2]
[376650372,1754071840402,-460.0,0.00021929,2]
[376650373,1754071840411,-840.28,0.00021929,2]
[376650374,1754071840422,-311.59,0.00021977,3]
[376650375,1754071840431,-155.79,0.00021977,3]
[376650376,1754071840440,-467.41,0.00021977,3]
[376650377,1754071840450,-16066.11080433,0.00021987,2]
[376650379,1754071840459,-348.36,0.00022,2]
[376650381,1754071840469,-506.74926842,0.00022073,2]
[376650383,1754071840478,-500.0,0.00022073,2]
[376650385,1754071840487,-500.0,0.00022073,2]
[376650387,1754071840496,-500.0,0.00022073,2]
[376650389,1754071840506,-1578.96,0.00022084,2]
[376650391,1754071840515,-460.0,0.00022084,2]
[376650393,1754071840524,-460.0,0.00022084,2]
[376650396,1754071840533,-1018.91,0.00022084,2]
[376650397,1754071840543,-460.0,0.00022084,2]
[376650399,1754071840552,-460.0,0.00022084,2]
[376650402,1754071840561,-409.62383595,0.00022084,2]
[376650404,1754071840570,-460.0,0.00022084,2]
[376650406,1754071840579,-460.0,0.00022084,2]
[376650408,1754071840589,-460.0,0.00022084,2]
[376650410,1754071840598,-460.0,0.00022084,2]
[376650412,1754071840607,-460.0,0.00022084,2]
[376650414,1754071840616,-460.0,0.00022084,2]
[376650416,1754071840626,-466.9,0.00022084,2]
[376650418,1754071840635,-460.0,0.00022084,2]
[376650420,1754071840644,-460.0,0.00022085,2]
[376650422,1754071840654,-303.88409203,0.00022085,2]
[376650424,1754071840664,-460.0,0.00022085,2]
[376650426,1754071840674,-460.0,0.00022085,2]
[376650427,1754071840683,-460.0,0.00022085,2]
[376650430,1754071840693,-605.22237715,0.00022085,2]
[376650432,1754071840702,-460.0,0.00022085,2]
[376650434,1754071840711,-256.46022987,0.00022085,2]
[376650435,1754071840720,-539.39734342,0.00022085,2]
[376650438,1754071840730,-349.50455115,0.00022085,2]
[376650440,1754071840739,-414.97725092,0.00022085,2]
[376650442,1754071840748,-460.0,0.00022085,2]
[376650444,1754071840757,-460.0,0.00022085,2]
[376650446,1754071840766,-460.0,0.00022085,2]
[376650448,1754071840775,-1918.31,0.00022085,2]
[376650450,1754071840784,-460.0,0.00022085,2]
[376650452,1754071840794,-460.0,0.00022085,2]
[376650454,1754071840803,-460.0,0.00022085,2]
[376650456,1754071840812,-460.0,0.00022085,2]
[376650458,1754071840821,-460.0,0.00022085,2]
[376650460,1754071840830,-460.0,0.00022085,2]
[376650462,1754071840839,-460.0,0.00022085,2]
[376650464,1754071840848,-460.0,0.00022085,2]
[376650466,1754071840857,-460.0,0.00022085,2]
[376650468,1754071840867,-460.0,0.00022085,2]
[376650470,1754071840876,-460.0,0.00022085,2]
[376650472,1754071840886,-460.0,0.00022085,2]
[376650474,1754071840896,-460.0,0.00022085,2]
[376650476,1754071840905,-460.0,0.00022086,2]
[376650478,1754071840914,-460.0,0.00022086,2]
[376650480,1754071840924,-460.0,0.00022086,2]
[376650482,1754071840932,-460.0,0.00022086,2]
[376650484,1754071840943,-466.3371728,0.00022086,2]
[376650485,1754071840952,-460.0,0.00022086,2]
[376650487,1754071840961,-460.0,0.00022086,2]
[376650490,1754071840970,-460.0,0.00022086,2]
[376650492,1754071840979,-460.0,0.00022086,2]
[376650494,1754071840988,-460.0,0.00022086,2]
[376650496,1754071840997,-460.0,0.00022086,2]
[376650498,1754071841007,-460.0,0.00022086,2]
[376650500,1754071841016,-460.0,0.00022086,2]
[376650502,1754071841025,-460.0,0.00022086,2]
[376650504,1754071841034,-460.0,0.00022086,2]
[376650506,1754071841043,-460.0,0.00022086,2]
[376650508,1754071841052,-460.0,0.00022086,2]
[376650510,1754071841061,-1035.12,0.00022086,2]
[376650512,1754071841070,-460.0,0.00022086,2]
[376650514,1754071841079,-460.0,0.00022086,2]
[376650516,1754071841089,-460.0,0.00022086,2]
[376650518,1754071841098,-460.0,0.00022086,2]
[376650519,1754071841108,-345.56181496,0.00022086,2]
[376650521,1754071841118,-460.0,0.00022086,2]
[376650523,1754071841130,-460.0,0.00022086,2]
[376650526,1754071841139,-1132.12,0.00022086,2]
[376650527,1754071841148,-460.0,0.00022086,2]
[376650529,1754071841158,-460.0,0.00022086,2]
[376650531,1754071841168,-460.0,0.00022086,2]
[376650533,1754071841178,-467.10016331,0.00022087,2]
[376650536,1754071841187,-460.0,0.00022087,2]
[376650538,1754071841196,-460.0,0.00022087,2]
[376650540,1754071841206,-460.0,0.00022087,2]
[376650542,1754071841215,-460.0,0.00022087,2]
[376650544,1754071841225,-460.0,0.00022087,2]
[376650546,1754071841234,-460.0,0.00022087,2]
[376650548,1754071841243,-460.0,0.00022087,2]
[376650550,1754071841252,-499.46049452,0.00022087,2]
[376650552,1754071841263,-460.0,0.00022087,2]
[376650554,1754071841273,-460.0,0.00022087,2]
[376650556,1754071841281,-460.0,0.00022087,2]
[376650558,1754071841290,-460.0,0.00022087,2]
[376650560,1754071841299,-460.0,0.00022087,2]
[376650562,1754071841310,-1862.78,0.00022087,2]
[376650564,1754071841319,-460.0,0.00022087,2]
[376650566,1754071841328,-460.0,0.00022088,2]
[376650568,1754071841338,-695.88,0.00022088,2]
[376650570,1754071841347,-460.0,0.00022089,2]
[376650571,1754071841357,-1155.73750896,0.00022107,6]
[376650574,1754071841366,-460.0,0.00022203,2]
[376650576,1754071841376,-840.28,0.00022203,2]
[376650577,1754071841385,-240.469,0.00022253,2]
[376650579,1754071841394,-1578.96,0.00022358,2]
[376650582,1754071841404,-460.0,0.00022358,2]
[376650583,1754071841413,-1018.91,0.00022358,2]
[376650586,1754071841425,-460.0,0.00022358,2]
[376650588,1754071841435,-460.0,0.00022358,2]
[376650590,1754071841444,-460.0,0.00022358,2]
[376650592,1754071841454,-460.0,0.00022358,2]
[376650594,1754071841464,-460.0,0.00022358,2]
[376650596,1754071841473,-559.79463741,0.00022358,2]
[376650598,1754071841484,-460.0,0.00022358,2]
[376650600,1754071841495,-560.8995469,0.00022358,2]
[376650602,1754071841507,-466.9,0.00022358,2]
[376650605,1754071841519,-460.0,0.00022358,2]
[376650607,1754071841531,-460.0,0.00022359,2]
[376650609,1754071841542,-460.0,0.00022359,2]
[376650611,1754071841554,-460.0,0.00022359,2]
[376650613,1754071841567,-460.0,0.00022359,2]
[376650615,1754071841577,-460.0,0.00022359,2]
[376650618,1754071841587,-491.79419299,0.00022359,2]
[376650620,1754071841597,-460.0,0.00022359,2]
[376650622,1754071841608,-460.0,0.00022359,2]
[376650624,1754071841619,-1918.31,0.00022359,2]
[376650626,1754071841631,-460.0,0.00022359,2]
[376650628,1754071841641,-460.0,0.00022359,2]
[376650631,1754071841652,-460.0,0.00022359,2]
[376650633,1754071841663,-460.0,0.00022359,2]
[376650635,1754071841677,-460.0,0.00022359,2]
[376650637,1754071841688,-182.63505734,0.00022359,2]
[376650639,1754071841698,-460.0,0.00022359,2]
[376650641,1754071841710,-460.0,0.00022359,2]
[376650643,1754071841721,-460.0,0.00022359,2]
[376650646,1754071841732,-460.0,0.00022359,2]
[376650648,1754071841743,-460.0,0.00022359,2]
[376650650,1754071841754,-150.21268105,0.00022359,2]
[376650652,1754071841766,-460.0,0.00022359,2]
[376650654,1754071841777,-1900.2541478,0.0002236,2]
[376650657,1754071841789,-460.0,0.0002236,2]
[376650659,1754071841800,-460.0,0.0002236,2]
[376650661,1754071841811,-460.0,0.0002236,2]
[376650663,1754071841822,-460.0,0.0002236,2]
[376650665,1754071841833,-460.0,0.0002236,2]
[376650668,1754071841844,-460.0,0.0002236,2]
[376650670,1754071841855,-523.05550737,0.0002236,2]
[376650672,1754071841866,-460.0,0.0002236,2]
[376650674,1754071841877,-460.0,0.0002236,2]
[376650676,1754071841887,-460.0,0.0002236,2]
[376650678,1754071841897,-460.0,0.0002236,2]
[376650681,1754071841907,-460.0,0.0002236,2]
[376650683,1754071841921,-460.0,0.0002236,2]
[376650685,1754071841931,-460.0,0.0002236,2]
[376650687,1754071841942,-460.0,0.0002236,2]
[376650689,1754071841953,-1035.12,0.0002236,2]
[376650692,1754071841963,-460.0,0.0002236,2]
[376650694,1754071841974,-460.0,0.0002236,2]
[376650696,1754071841985,-460.0,0.0002236,2]
[376650698,1754071841995,-460.0,0.0002236,2]
[376650700,1754071842005,-460.0,0.0002236,2]
[376650702,1754071842015,-460.0,0.0002236,2]
[376650704,1754071842027,-1132.12,0.0002236,2]
[376650706,1754071842037,-460.0,0.0002236,2]
[376650709,1754071842049,-460.0,0.0002236,2]
[376650711,1754071842059,-460.0,0.00022361,2]
[376650713,1754071842068,-460.0,0.00022361,2]
[376650715,1754071842079,-460.0,0.00022361,2]
[376650717,1754071842089,-460.0,0.00022361,2]
[376650720,1754071842100,-279.31371858,0.00022361,2]
[376650722,1754071842110,-460.0,0.00022361,2]
[376650724,1754071842120,-460.0,0.00022361,2]
[376650726,1754071842132,-195.08,0.00022361,2]
[376650728,1754071842142,-460.0,0.00022361,2]
[376650730,1754071842153,-460.0,0.00022361,2]
[376650732,1754071842163,-1862.78,0.00022361,2]
[376650734,1754071842176,-460.0,0.00022361,2]
[376650737,1754071842186,-460.0,0.00022362,2]
[376650739,1754071842198,-460.0,0.00022362,2]
[376650741,1754071842208,-460.0,0.00022362,2]
[376650743,1754071842219,-695.88,0.00022362,2]
[376650746,1754071842232,-714.89,0.00022362,2]
[376650748,1754071842243,-460.0,0.00022362,2]
[376650750,1754071842255,-460.0,0.00022363,2]
[376650752,1754071842268,-1155.73750896,0.00022383,7]
[376650754,1754071842277,-1000.0,0.00022421,2]
[376650756,1754071842288,-840.28,0.00022477,2]
[376650758,1754071842298,-678.62959462,0.00022619,2]
[376650760,1754071842308,-500.0,0.00022621,2]
[376650763,1754071842318,-500.0,0.00022621,2]
[376650765,1754071842328,-1578.96,0.00022632,2]
[376650767,1754071842340,-460.0,0.00022632,2]
[376650769,1754071842351,-1018.91,0.00022632,2]
[376650771,1754071842362,-460.0,0.00022632,2]
[376650775,1754071842373,-460.0,0.00022632,2]
[376650777,1754071842384,-460.0,0.00022632,2]
[376650779,1754071842395,-460.0,0.00022632,2]
[376650781,1754071842405,-460.0,0.00022632,2]
[376650783,1754071842415,-466.9,0.00022632,2]
[376650785,1754071842429,-460.0,0.00022632,2]
[376650788,1754071842440,-325.809411,0.00022632,2]
[376650790,1754071842449,-460.0,0.00022633,2]
[376650792,1754071842459,-460.0,0.00022633,2]
[376650794,1754071842470,-460.0,0.00022633,2]
[376650796,1754071842480,-460.0,0.00022633,2]
[376650798,1754071842491,-460.0,0.00022633,2]
[376650800,1754071842502,-460.0,0.00022633,2]
[376650803,1754071842512,-460.0,0.00022633,2]
[376650805,1754071842522,-1918.31,0.00022633,2]
[376650807,1754071842533,-460.0,0.00022633,2]
[376650809,1754071842542,-460.0,0.00022633,2]
[376650811,1754071842552,-460.0,0.00022633,2]
[376650813,1754071842562,-460.0,0.00022633,2]
[376650815,1754071842571,-460.0,0.00022633,2]
[376650817,1754071842582,-460.0,0.00022633,2]
[376650819,1754071842592,-460.0,0.00022633,2]
[376650821,1754071842603,-273.68789934,0.00022633,2]
[376650824,1754071842613,-460.0,0.00022633,2]
[376650826,1754071842623,-460.0,0.00022633,2]
[376650828,1754071842634,-460.0,0.00022633,2]
[376650830,1754071842644,-460.0,0.00022634,2]
[376650832,1754071842654,-460.0,0.00022634,2]
[376650834,1754071842664,-460.0,0.00022634,2]
[376650836,1754071842680,-460.0,0.00022634,2]
[376650838,1754071842690,-460.0,0.00022634,2]
[376650840,1754071842700,-460.0,0.00022634,2]
[376650843,1754071842710,-460.0,0.00022634,2]
[376650845,1754071842720,-460.0,0.00022634,2]
[376650847,1754071842730,-460.0,0.00022634,2]
[376650849,1754071842740,-460.0,0.00022634,2]
[376650851,1754071842750,-460.0,0.00022634,2]
[376650853,1754071842760,-460.0,0.00022634,2]
[376650855,1754071842770,-460.0,0.00022634,2]
[376650857,1754071842781,-460.0,0.00022634,2]
[376650859,1754071842792,-1035.12,0.00022634,2]
[376650862,1754071842803,-460.0,0.00022634,2]
[376650864,1754071842813,-460.0,0.00022634,2]
[376650866,1754071842824,-229.59084222,0.00022634,2]
[376650868,1754071842834,-460.0,0.00022634,2]
[376650870,1754071842843,-379.00694976,0.00022634,2]
[376650872,1754071842853,-460.0,0.00022634,2]
[376650874,1754071842863,-1132.12,0.00022634,2]
[376650876,1754071842873,-460.0,0.00022634,2]
[376650880,1754071842884,-460.0,0.00022634,2]
[376650883,1754071842894,-346.44120198,0.00022635,2]
[376650886,1754071842904,-460.0,0.00022635,2]
[376650889,1754071842914,-485.91272929,0.00022635,2]
[376650892,1754071842928,-460.0,0.00022635,2]
[376650894,1754071842938,-460.0,0.00022635,2]
[376650896,1754071842948,-460.0,0.00022635,2]
[376650899,1754071842958,-460.0,0.00022635,2]
[376650903,1754071842968,-460.0,0.00022635,2]
[376650906,1754071842980,-1862.78,0.00022635,2]
[376650909,1754071842990,-460.0,0.00022635,2]
[376650912,1754071843000,-460.0,0.00022636,2]
[376650916,1754071843011,-460.0,0.00022636,2]
[376650919,1754071843021,-460.0,0.00022636,2]
[376650921,1754071843032,-695.88,0.00022636,2]
[376650923,1754071843044,-714.89,0.00022636,2]
[376650925,1754071843054,-460.0,0.00022636,2]
[376650927,1754071843063,-460.0,0.00022637,2]
[376650930,1754071843074,-1155.73750896,0.00022659,7]
[376650932,1754071843084,-500.0,0.00022673,2]
[376650934,1754071843094,-200.0,0.00022673,2]
[376650936,1754071843103,-840.28,0.00022751,2]
[376650938,1754071843113,-1489.90724701,0.00022808,2]
[376650940,1754071843123,-3000.0,0.000229,2]
[376650942,1754071843134,-1578.96,0.00022906,2]
[376650944,1754071843145,-460.0,0.00022906,2]
[376650946,1754071843155,-1018.91,0.00022906,2]
[376650949,1754071843165,-460.0,0.00022906,2]
[376650951,1754071843177,-460.0,0.00022906,2]
[376650953,1754071843187,-460.0,0.00022906,2]
[376650955,1754071843198,-460.0,0.00022906,2]
[376650957,1754071843209,-460.0,0.00022906,2]
[376650959,1754071843219,-466.9,0.00022906,2]
[376650961,1754071843229,-460.0,0.00022906,2]
[376650963,1754071843239,-460.0,0.00022907,2]
[376650965,1754071843249,-232.22049851,0.00022907,2]
[376650968,1754071843265,-460.0,0.00022907,2]
[376650970,1754071843275,-460.0,0.00022907,2]
[376650972,1754071843286,-460.0,0.00022907,2]
[376650974,1754071843296,-460.0,0.00022907,2]
[376650976,1754071843308,-460.0,0.00022907,2]
[376650978,1754071843318,-1918.31,0.00022907,2]
[376650980,1754071843329,-460.0,0.00022907,2]
[376650983,1754071843340,-460.0,0.00022907,2]
[376650985,1754071843350,-460.0,0.00022907,2]
[376650987,1754071843360,-460.0,0.00022907,2]
[376650989,1754071843370,-461.88422666,0.00022907,2]
[376651011,1754071843549,-460.0,0.00022907,2]
[376651013,1754071843560,-460.0,0.00022907,2]
[376651015,1754071843569,-460.0,0.00022907,2]
[376651017,1754071843579,-460.0,0.00022907,2]
[376651019,1754071843588,-460.0,0.00022907,2]
[376651021,1754071843598,-460.0,0.00022908,2]
[376651023,1754071843607,-460.0,0.00022908,2]
[376651025,1754071843617,-460.0,0.00022908,2]
[376651027,1754071843626,-460.0,0.00022908,2]
[376651029,1754071843634,-460.0,0.00022908,2]
[376651031,1754071843641,-460.0,0.00022908,2]
[376651033,1754071843650,-460.0,0.00022908,2]
[376651035,1754071843662,-419.32627696,0.00022908,2]
[376651037,1754071843672,-460.0,0.00022908,2]
[376651039,1754071843682,-460.0,0.00022908,2]
[376651041,1754071843691,-460.0,0.00022908,2]
[376651043,1754071843701,-460.0,0.00022908,2]
[376651045,1754071843710,-460.0,0.00022908,2]
[376651047,1754071843719,-460.0,0.00022908,2]
[376651049,1754071843728,-1035.12,0.00022908,2]
[376651051,1754071843737,-460.0,0.00022908,2]
[376651053,1754071843746,-460.0,0.00022908,2]
[376651055,1754071843757,-460.0,0.00022908,2]
[376651057,1754071843767,-276.41,0.00022908,2]
[376651059,1754071843776,-1132.12,0.00022908,2]
[376651061,1754071843785,-460.0,0.00022908,2]
[376651063,1754071843795,-538.84179623,0.00022908,2]
[376651065,1754071843804,-182.30118804,0.00022909,2]
[376651067,1754071843813,-382.29826386,0.00022909,2]
[376651069,1754071843822,-460.0,0.00022909,2]
[376651071,1754071843831,-203.59115596,0.00022909,2]
[376651073,1754071843840,-460.0,0.00022909,2]
[376651075,1754071843849,-460.0,0.00022909,2]
[376651077,1754071843858,-460.0,0.00022909,2]
[376651079,1754071843868,-1862.78,0.00022909,2]
[376651081,1754071843878,-460.0,0.00022909,2]
[376651083,1754071843887,-3000.0,0.0002291,2]
[376651085,1754071843897,-460.0,0.0002291,2]
[376651087,1754071843906,-435.0,0.0002291,2]
[376651089,1754071843915,-460.0,0.0002291,2]
[376651091,1754071843926,-695.88,0.0002291,2]
[376651093,1754071843935,-714.89,0.0002291,2]
[376651095,1754071843945,-460.0,0.0002291,2]
[376651097,1754071843954,-460.0,0.00022911,2]
[376651099,1754071843963,-3000.0,0.0002292,2]
[376651101,1754071843972,-3000.0,0.0002293,2]
[376651103,1754071843982,-166.67620482,0.00022934,2]
[376651105,1754071843991,-1155.73750896,0.00022934,8]
[376651107,1754071844001,-3000.0,0.0002294,2]
[376651109,1754071844010,-3000.0,0.0002295,2]
[376651111,1754071844020,-3000.0,0.0002296,2]
[376651113,1754071844029,-3686.568353,0.0002297,2]
[376651115,1754071844038,-150.0,0.00022973,2]
[376651117,1754071844048,-500.0,0.00022973,2]
[376651119,1754071844058,-500.0,0.00022973,2]
[376651121,1754071844067,-500.0,0.00022973,2]
[376651123,1754071844076,-500.0,0.00022973,2]
[376651125,1754071844085,-500.0,0.00022973,2]
[376651127,1754071844095,-500.0,0.00022973,2]
[376651129,1754071844104,-263.02104221,0.00022973,2]
[376651131,1754071844113,-500.0,0.00022973,2]
[376651133,1754071844123,-216.22890603,0.00023,3]
[376651135,1754071844132,-160.0,0.00023,2]
[376651137,1754071844143,-348.36,0.00023,2]
[376651139,1754071844153,-587.0,0.00023005,2]
[376651141,1754071844162,-840.28,0.00023025,2]
[376651143,1754071844171,-1578.96,0.0002318,2]
[376651145,1754071844180,-460.0,0.0002318,2]
[376651147,1754071844189,-1018.91,0.0002318,2]
[376651149,1754071844199,-460.0,0.0002318,2]
[376651151,1754071844209,-460.0,0.0002318,2]
[376651153,1754071844218,-460.0,0.0002318,2]
[376651155,1754071844228,-460.0,0.0002318,2]
[376651157,1754071844238,-460.0,0.0002318,2]
[376651159,1754071844248,-466.9,0.0002318,2]
[376651161,1754071844258,-460.0,0.0002318,2]
[376651163,1754071844271,-311.26324664,0.00023181,2]
[376651165,1754071844280,-460.0,0.00023181,2]
[376651167,1754071844289,-460.0,0.00023181,2]
[376651169,1754071844298,-460.0,0.00023181,2]
[376651171,1754071844308,-460.0,0.00023181,2]
[376651173,1754071844318,-460.0,0.00023181,2]
[376651175,1754071844327,-1918.31,0.00023181,2]
[376651177,1754071844338,-460.0,0.00023181,2]
[376651178,1754071844347,-460.0,0.00023181,2]
[376651179,1754071844356,-460.0,0.00023181,2]
[376651180,1754071844365,-460.0,0.00023181,2]
[376651181,1754071844374,-460.0,0.00023181,2]
[376651182,1754071844383,-460.0,0.00023181,2]
[376651183,1754071844392,-460.0,0.00023181,2]
[376651184,1754071844402,-460.0,0.00023181,2]
[376651185,1754071844410,-460.0,0.00023181,2]
[376651186,1754071844419,-460.0,0.00023182,2]
[376651187,1754071844428,-460.0,0.00023182,2]
[376651188,1754071844437,-460.0,0.00023182,2]
[376651189,1754071844446,-460.0,0.00023182,2]
[376651190,1754071844455,-460.0,0.00023182,2]
[376651191,1754071844465,-460.0,0.00023182,2]
[376651192,1754071844474,-460.0,0.00023182,2]
[376651193,1754071844483,-186.44250095,0.00023182,2]
[376651194,1754071844492,-460.0,0.00023182,2]
[376651195,1754071844501,-460.0,0.00023182,2]
[376651196,1754071844510,-460.0,0.00023182,2]
[376651197,1754071844519,-472.67,0.00023182,2]
[376651198,1754071844528,-460.0,0.00023182,2]
[376651199,1754071844537,-1035.12,0.00023182,2]
[376651200,1754071844546,-460.0,0.00023182,2]
[376651201,1754071844555,-376.86429311,0.00023182,2]
[376651203,1754071844564,-460.0,0.00023182,2]
[376651204,1754071844574,-1132.12,0.00023182,2]
[376651206,1754071844583,-460.0,0.00023182,2]
[376651208,1754071844592,-460.0,0.00023183,2]
[376651210,1754071844602,-460.0,0.00023183,2]
[376651212,1754071844610,-460.0,0.00023183,2]
[376651214,1754071844619,-460.0,0.00023183,2]
[376651216,1754071844628,-1862.78,0.00023183,2]
[376651218,1754071844638,-460.0,0.00023183,2]
[376651220,1754071844647,-460.0,0.00023184,2]
[376651222,1754071844656,-695.88,0.00023184,2]
[376651224,1754071844668,-714.89,0.00023184,2]
[376651226,1754071844680,-460.0,0.00023185,2]
[376651228,1754071844690,-1003.26,0.000232,7]
[376651230,1754071844699,-1155.73750896,0.0002321,8]
[376651232,1754071844708,-400.0,0.00023221,2]
[376651234,1754071844718,-840.28,0.00023299,2]
[376651236,1754071844727,-623.18,0.00023347,3]
[376651238,1754071844736,-311.58,0.00023347,3]
[376651240,1754071844745,-215.03686253,0.00023426,2]
[376651242,1754071844754,-841.53699354,0.00023426,2]
[376651244,1754071844763,-160.0,0.00023426,2]
[376651246,1754071844772,-160.0,0.00023426,2]
[376651248,1754071844782,-231.52694941,0.00023426,2]
[376651250,1754071844791,-460.76838597,0.00023426,2]
[376651252,1754071844801,-12644.26590849,0.00023426,2]
[376651255,1754071844811,-160.0,0.00023426,2]
[376651257,1754071844821,-1578.96,0.00023454,2]
[376651259,1754071844830,-460.0,0.00023454,2]
[376651261,1754071844839,-1018.91,0.00023454,2]
[376651262,1754071844849,-460.0,0.00023454,2]
[376651265,1754071844858,-273.35291621,0.00023454,2]
[376651266,1754071844870,-460.0,0.00023454,2]
[376651268,1754071844879,-460.0,0.00023454,2]
[376651270,1754071844888,-460.0,0.00023454,2]
[376651272,1754071844897,-466.9,0.00023454,2]
[376651274,1754071844907,-460.0,0.00023454,2]
[376651277,1754071844917,-460.0,0.00023455,2]
[376651279,1754071844927,-460.0,0.00023455,2]
[376651281,1754071844936,-460.0,0.00023455,2]
[376651282,1754071844946,-460.0,0.00023455,2]
[376651285,1754071844955,-460.0,0.00023455,2]
[376651287,1754071844965,-1918.31,0.00023455,2]
[376651288,1754071844974,-460.0,0.00023455,2]
[376651291,1754071844983,-460.0,0.00023455,2]
[376651293,1754071844993,-313.52356816,0.00023455,2]
[376651295,1754071845002,-460.0,0.00023455,2]
[376651297,1754071845011,-460.0,0.00023455,2]
[376651299,1754071845020,-460.0,0.00023455,2]
[376651301,1754071845029,-460.0,0.00023455,2]